[Event "Titled Tuesday Blitz September 27 Early 2022"]
[White "Hafiz, Arif Abdul"]
[Black "Gilmanov, Mansur"]
[WhiteFideId "7104227"]
[BlackFideId "4166868"]
[WhiteElo "2198"]
[BlackElo "2377"]
[Result "1-0"]
[Round "02"]
[TimeControl "180+1"]
[Date "2022.09.27"]
[WhiteClock "0:00:09"]
[BlackClock "0:00:10"]

1. e4 {[%clk 0:03:00]}  d5 {[%clk 0:03:00]} 2. exd5 {[%clk 0:02:56]}  Qxd5 {[%clk 0:03:00]} 3. Nc3 {[%clk 0:02:55]}  Qe5+ {[%clk 0:02:59]} 4. Be2 {[%clk 0:02:47]}  Bg4 {[%clk 0:02:59]} 5. f3 {[%clk 0:02:44]}  Bd7 {[%clk 0:02:56]} 6. d4 {[%clk 0:02:43]}  Qa5 {[%clk 0:02:57]} 7. Bc4 {[%clk 0:02:40]}  e6 {[%clk 0:02:54]} 8. Ne2 {[%clk 0:02:40]}  Nf6 {[%clk 0:02:48]} 9. O-O {[%clk 0:02:39]}  Nc6 {[%clk 0:02:39]} 10. Kh1 {[%clk 0:02:11]}  O-O-O {[%clk 0:02:38]} 11. Nb5 {[%clk 0:02:07]}  Nb4 {[%clk 0:02:25]} 12. a4 {[%clk 0:01:58]}  Bxb5 {[%clk 0:02:11]} 13. Bxb5 {[%clk 0:01:51]}  c6 {[%clk 0:02:11]} 14. Bc4 {[%clk 0:01:40]}  Bd6 {[%clk 0:02:12]} 15. c3 {[%clk 0:01:32]}  Qh5 {[%clk 0:02:02]} 16. Nf4 {[%clk 0:01:22]}  Bxf4 {[%clk 0:01:57]} 17. Bxf4 {[%clk 0:01:23]}  Nbd5 {[%clk 0:01:58]} 18. Bd2 {[%clk 0:01:17]}  e5 {[%clk 0:01:54]} 19. g4 {[%clk 0:01:08]}  Qh3 {[%clk 0:01:44]} 20. Qe2 {[%clk 0:00:40]}  exd4 {[%clk 0:01:38]} 21. cxd4 {[%clk 0:00:41]}  Rhe8 {[%clk 0:01:38]} 22. Qf2 {[%clk 0:00:41]}  h5 {[%clk 0:01:07]} 23. g5 {[%clk 0:00:41]}  Nh7 {[%clk 0:01:07]} 24. Rfe1 {[%clk 0:00:40]}  Qf5 {[%clk 0:01:02]} 25. Qg3 {[%clk 0:00:35]}  h4 {[%clk 0:00:57]} 26. Qg4 {[%clk 0:00:32]}  Qxg4 {[%clk 0:00:46]} 27. fxg4 {[%clk 0:00:33]}  Nf8 {[%clk 0:00:47]} 28. Bxd5 {[%clk 0:00:25]}  cxd5 {[%clk 0:00:44]} 29. Rf1 {[%clk 0:00:17]}  Rd7 {[%clk 0:00:44]} 30. Bf4 {[%clk 0:00:16]}  Ne6 {[%clk 0:00:43]} 31. Rac1+ {[%clk 0:00:17]}  Kd8 {[%clk 0:00:41]} 32. Be5 {[%clk 0:00:17]}  Nxg5 {[%clk 0:00:31]} 33. Bxg7 {[%clk 0:00:17]}  Ne4 {[%clk 0:00:32]} 34. Be5 {[%clk 0:00:16]}  Rg8 {[%clk 0:00:30]} 35. h3 {[%clk 0:00:16]}  Rg6 {[%clk 0:00:29]} 36. Kg2 {[%clk 0:00:14]}  Rb6 {[%clk 0:00:28]} 37. Rc2 {[%clk 0:00:13]}  f6 {[%clk 0:00:27]} 38. Bf4 {[%clk 0:00:13]}  Rb3 {[%clk 0:00:27]} 39. Rf3 {[%clk 0:00:12]}  Rb4 {[%clk 0:00:26]} 40. b3 {[%clk 0:00:12]}  Rxd4 {[%clk 0:00:26]} 41. Be3 {[%clk 0:00:12]}  Rd1 {[%clk 0:00:25]} 42. Bxa7 {[%clk 0:00:13]}  d4 {[%clk 0:00:22]} 43. Bb6+ {[%clk 0:00:12]}  Ke7 {[%clk 0:00:19]} 44. Re2 {[%clk 0:00:12]}  Rd2 {[%clk 0:00:18]} 45. Rxd2 {[%clk 0:00:09]}  Nxd2 {[%clk 0:00:19]} 46. Rd3 {[%clk 0:00:10]}  Nxb3 {[%clk 0:00:10]} 47. Rxb3 {[%clk 0:00:10]}  d3 {[%clk 0:00:11]} 48. Rb1 {[%clk 0:00:09]}  Ke6 {[%clk 0:00:10]} 49. Rd1 {[%clk 0:00:09]}  Ke5 {[%clk 0:00:10]} 50. Kf3 {[%clk 0:00:09]}  Rd6 {[%clk 0:00:10]} 51. Bc7 {[%clk 0:00:09]} 1-0


[Site "https://www.chess.com"]

[Event "Titled Tuesday Blitz September 27 Early 2022"]
[White "Haitin, Ilja"]
[Black "Korelskiy, Egor"]
[WhiteFideId "4501764"]
[BlackFideId "34329064"]
[WhiteElo "2243"]
[BlackElo "2071"]
[Result "0-1"]
[Round "02"]
[TimeControl "180+1"]
[Date "2022.09.27"]
[WhiteClock "0:01:27"]
[BlackClock "0:02:17"]

1. e4 {[%clk 0:03:00]}  c5 {[%clk 0:02:59]} 2. Nf3 {[%clk 0:03:00]}  e6 {[%clk 0:02:58]} 3. b3 {[%clk 0:03:00]}  d6 {[%clk 0:02:57]} 4. Bb2 {[%clk 0:03:00]}  Nf6 {[%clk 0:02:57]} 5. Nc3 {[%clk 0:02:51]}  Be7 {[%clk 0:02:57]} 6. d4 {[%clk 0:02:45]}  cxd4 {[%clk 0:02:56]} 7. Nxd4 {[%clk 0:02:46]}  a6 {[%clk 0:02:56]} 8. Bd3 {[%clk 0:02:41]}  Qc7 {[%clk 0:02:56]} 9. O-O {[%clk 0:02:40]}  b5 {[%clk 0:02:56]} 10. a3 {[%clk 0:02:39]}  Bb7 {[%clk 0:02:56]} 11. Kh1 {[%clk 0:02:38]}  Nbd7 {[%clk 0:02:55]} 12. f4 {[%clk 0:02:36]}  O-O {[%clk 0:02:55]} 13. Nf3 {[%clk 0:02:27]}  Rac8 {[%clk 0:02:53]} 14. Qe2 {[%clk 0:02:23]}  h6 {[%clk 0:02:53]} 15. Rad1 {[%clk 0:02:21]}  Rfd8 {[%clk 0:02:52]} 16. Qf2 {[%clk 0:02:10]}  Nc5 {[%clk 0:02:50]} 17. e5 {[%clk 0:02:06]}  dxe5 {[%clk 0:02:46]} 18. fxe5 {[%clk 0:02:06]}  Ng4 {[%clk 0:02:41]} 19. Qe2 {[%clk 0:01:56]}  Bxf3 {[%clk 0:02:36]} 20. Rxf3 {[%clk 0:01:51]}  Nxd3 {[%clk 0:02:22]} 21. cxd3 {[%clk 0:01:30]}  Qxe5 {[%clk 0:02:18]} 22. Ne4 {[%clk 0:01:27]}  Qxh2# {[%clk 0:02:17]} 0-1


[Site "https://www.chess.com"]

[Event "Titled Tuesday Blitz September 27 Early 2022"]
[White "Hnydiuk, Aleksander"]
[Black "Samaganova, Aleksandra"]
[WhiteFideId "1109057"]
[BlackFideId "13800221"]
[WhiteElo "2374"]
[BlackElo "1864"]
[Result "1-0"]
[Round "02"]
[TimeControl "180+1"]
[Date "2022.09.27"]
[WhiteClock "0:00:36"]
[BlackClock "0:00:24"]

1. c4 {[%clk 0:03:00]}  c5 {[%clk 0:02:59]} 2. Nf3 {[%clk 0:03:00]}  Nf6 {[%clk 0:02:59]} 3. Nc3 {[%clk 0:02:57]}  Nc6 {[%clk 0:02:59]} 4. d4 {[%clk 0:02:55]}  cxd4 {[%clk 0:02:58]} 5. Nxd4 {[%clk 0:02:55]}  g6 {[%clk 0:02:56]} 6. g3 {[%clk 0:02:55]}  Bg7 {[%clk 0:02:56]} 7. Bg2 {[%clk 0:02:55]}  O-O {[%clk 0:02:55]} 8. O-O {[%clk 0:02:55]}  a6 {[%clk 0:02:53]} 9. b3 {[%clk 0:02:42]}  Qc7 {[%clk 0:02:48]} 10. Bb2 {[%clk 0:02:39]}  Nxd4 {[%clk 0:02:36]} 11. Qxd4 {[%clk 0:02:38]}  d6 {[%clk 0:02:36]} 12. Rac1 {[%clk 0:02:18]}  Qd8 {[%clk 0:02:13]} 13. Rfd1 {[%clk 0:02:15]}  Rb8 {[%clk 0:02:11]} 14. Qh4 {[%clk 0:01:57]}  b5 {[%clk 0:02:05]} 15. c5 {[%clk 0:01:55]}  h6 {[%clk 0:01:47]} 16. cxd6 {[%clk 0:01:32]}  exd6 {[%clk 0:01:46]} 17. Ba3 {[%clk 0:01:24]}  g5 {[%clk 0:01:32]} 18. Qb4 {[%clk 0:01:15]}  d5 {[%clk 0:01:18]} 19. Nxd5 {[%clk 0:01:08]}  Nxd5 {[%clk 0:01:18]} 20. Bxd5 {[%clk 0:01:07]}  Qf6 {[%clk 0:01:11]} 21. Qd6 {[%clk 0:01:04]}  Bg4 {[%clk 0:00:48]} 22. Qxf6 {[%clk 0:01:00]}  Bxf6 {[%clk 0:00:49]} 23. Bxf8 {[%clk 0:00:59]}  Kxf8 {[%clk 0:00:50]} 24. Bf3 {[%clk 0:00:56]}  Bxf3 {[%clk 0:00:47]} 25. exf3 {[%clk 0:00:57]}  b4 {[%clk 0:00:48]} 26. Rc6 {[%clk 0:00:54]}  Bc3 {[%clk 0:00:44]} 27. Rxa6 {[%clk 0:00:49]}  Kg7 {[%clk 0:00:44]} 28. Rd7 {[%clk 0:00:47]}  Rb5 {[%clk 0:00:41]} 29. Raa7 {[%clk 0:00:42]}  Rf5 {[%clk 0:00:40]} 30. Kg2 {[%clk 0:00:42]}  Rf6 {[%clk 0:00:41]} 31. a4 {[%clk 0:00:39]}  Kg6 {[%clk 0:00:34]} 32. a5 {[%clk 0:00:37]}  h5 {[%clk 0:00:28]} 33. Rab7 {[%clk 0:00:36]}  Ra6 {[%clk 0:00:25]} 34. Rb6+ {[%clk 0:00:36]}  Rxb6 {[%clk 0:00:24]} 35. axb6 {[%clk 0:00:36]} 1-0


[Site "https://www.chess.com"]

[Event "Titled Tuesday Blitz September 27 Early 2022"]
[White "Ilkhomi, Jaloliddin"]
[Black "Diaz Perez, Michel Alejandro"]
[WhiteFideId "14700948"]
[BlackFideId "3517179"]
[WhiteElo "1440"]
[BlackElo "2313"]
[Result "0-1"]
[Round "02"]
[TimeControl "180+1"]
[Date "2022.09.27"]
[WhiteClock "0:00:05"]
[BlackClock "0:00:13"]

1. d4 {[%clk 0:03:00]}  Nf6 {[%clk 0:02:56]} 2. Nf3 {[%clk 0:03:00]}  e6 {[%clk 0:02:55]} 3. Bf4 {[%clk 0:03:00]}  d6 {[%clk 0:02:55]} 4. e3 {[%clk 0:03:01]}  Nbd7 {[%clk 0:02:56]} 5. Nbd2 {[%clk 0:03:02]}  b6 {[%clk 0:02:56]} 6. Bd3 {[%clk 0:03:02]}  Bb7 {[%clk 0:02:57]} 7. Bg3 {[%clk 0:03:02]}  Be7 {[%clk 0:02:58]} 8. O-O {[%clk 0:03:03]}  O-O {[%clk 0:02:58]} 9. h3 {[%clk 0:03:04]}  c5 {[%clk 0:02:59]} 10. c3 {[%clk 0:03:04]}  cxd4 {[%clk 0:02:59]} 11. exd4 {[%clk 0:03:05]}  Re8 {[%clk 0:02:59]} 12. Re1 {[%clk 0:03:05]}  a6 {[%clk 0:02:57]} 13. Qe2 {[%clk 0:03:05]}  Bf8 {[%clk 0:02:57]} 14. Rad1 {[%clk 0:03:04]}  Qc7 {[%clk 0:02:56]} 15. Ne4 {[%clk 0:03:04]}  h6 {[%clk 0:02:51]} 16. Nxf6+ {[%clk 0:03:01]}  Nxf6 {[%clk 0:02:52]} 17. Bh4 {[%clk 0:03:01]}  Nd5 {[%clk 0:02:46]} 18. Bb1 {[%clk 0:03:00]}  Nf4 {[%clk 0:02:32]} 19. Qe3 {[%clk 0:02:48]}  e5 {[%clk 0:02:30]} 20. Bg3 {[%clk 0:02:40]}  Nh5 {[%clk 0:02:23]} 21. Bh2 {[%clk 0:02:13]}  e4 {[%clk 0:02:14]} 22. Nd2 {[%clk 0:02:06]}  f5 {[%clk 0:02:12]} 23. Kh1 {[%clk 0:01:45]}  Qf7 {[%clk 0:02:09]} 24. Qe2 {[%clk 0:01:38]}  f4 {[%clk 0:01:42]} 25. Qg4 {[%clk 0:00:57]}  Bc8 {[%clk 0:01:40]} 26. Qe2 {[%clk 0:00:53]}  Bf5 {[%clk 0:01:24]} 27. f3 {[%clk 0:00:40]}  e3 {[%clk 0:01:17]} 28. Nf1 {[%clk 0:00:35]}  Bxb1 {[%clk 0:01:08]} 29. Rxb1 {[%clk 0:00:36]}  d5 {[%clk 0:01:08]} 30. g3 {[%clk 0:00:19]}  fxg3 {[%clk 0:01:05]} 31. Nxg3 {[%clk 0:00:20]}  Nf4 {[%clk 0:00:49]} 32. Qf1 {[%clk 0:00:16]}  Qd7 {[%clk 0:00:46]} 33. Ne2 {[%clk 0:00:03]}  Nxh3 {[%clk 0:00:45]} 34. Qg2 {[%clk 0:00:03]}  Nf2+ {[%clk 0:00:36]} 35. Kg1 {[%clk 0:00:03]}  Qf7 {[%clk 0:00:30]} 36. Nf4 {[%clk 0:00:02]}  Bd6 {[%clk 0:00:24]} 37. Nh3 {[%clk 0:00:02]}  Nxh3+ {[%clk 0:00:18]} 38. Qxh3 {[%clk 0:00:02]}  Bxh2+ {[%clk 0:00:16]} 39. Kxh2 {[%clk 0:00:03]}  e2 {[%clk 0:00:14]} 40. Qg3 {[%clk 0:00:02]}  Re3 {[%clk 0:00:13]} 41. Rbc1 {[%clk 0:00:03]}  Rxf3 {[%clk 0:00:13]} 42. Qg2 {[%clk 0:00:03]}  Rf2 {[%clk 0:00:14]} 43. Rxe2 {[%clk 0:00:04]}  Rxg2+ {[%clk 0:00:14]} 44. Rxg2 {[%clk 0:00:05]}  Qf4+ {[%clk 0:00:13]} 0-1


[Site "https://www.chess.com"]

[Event "Titled Tuesday Blitz September 27 Early 2022"]
[White "Iturrizaga Bonelli, Eduardo"]
[Black "Yurovskykh, Oleksandr"]
[WhiteFideId "3901211"]
[BlackFideId "14134020"]
[WhiteElo "2629"]
[BlackElo "2303"]
[Result "1-0"]
[Round "02"]
[TimeControl "180+1"]
[Date "2022.09.27"]
[WhiteClock "0:00:03"]
[BlackClock "0:00:01"]

1. c4 {[%clk 0:02:59]}  e6 {[%clk 0:02:57]} 2. g3 {[%clk 0:02:59]}  d5 {[%clk 0:02:54]} 3. Bg2 {[%clk 0:03:00]}  Nf6 {[%clk 0:02:54]} 4. Nf3 {[%clk 0:03:00]}  dxc4 {[%clk 0:02:50]} 5. Qa4+ {[%clk 0:02:59]}  Bd7 {[%clk 0:02:49]} 6. Qxc4 {[%clk 0:03:00]}  c5 {[%clk 0:02:50]} 7. Ne5 {[%clk 0:02:58]}  Qc8 {[%clk 0:02:50]} 8. O-O {[%clk 0:02:56]}  Nc6 {[%clk 0:02:50]} 9. Nxd7 {[%clk 0:02:57]}  Qxd7 {[%clk 0:02:50]} 10. Nc3 {[%clk 0:02:55]}  Be7 {[%clk 0:02:49]} 11. d3 {[%clk 0:02:52]}  O-O {[%clk 0:02:48]} 12. Rd1 {[%clk 0:02:51]}  Rac8 {[%clk 0:02:48]} 13. Bg5 {[%clk 0:02:49]}  Rfd8 {[%clk 0:02:42]} 14. Rac1 {[%clk 0:02:35]}  b6 {[%clk 0:02:41]} 15. Qa4 {[%clk 0:02:32]}  Nd4 {[%clk 0:02:37]} 16. Qa6 {[%clk 0:02:18]}  h6 {[%clk 0:02:23]} 17. Be3 {[%clk 0:01:58]}  Nc6 {[%clk 0:01:36]} 18. a3 {[%clk 0:01:51]}  Nb8 {[%clk 0:01:30]} 19. Qc4 {[%clk 0:01:45]}  Nd5 {[%clk 0:01:28]} 20. Bd2 {[%clk 0:01:41]}  Nc6 {[%clk 0:01:27]} 21. Qg4 {[%clk 0:01:38]}  Nf6 {[%clk 0:01:19]} 22. Qc4 {[%clk 0:01:27]}  Nd5 {[%clk 0:01:18]} 23. Qg4 {[%clk 0:01:11]}  Nf6 {[%clk 0:01:16]} 24. Qa4 {[%clk 0:01:12]}  Nb8 {[%clk 0:01:16]} 25. Qc4 {[%clk 0:00:53]}  Nc6 {[%clk 0:01:08]} 26. Be1 {[%clk 0:00:52]}  Nd4 {[%clk 0:01:04]} 27. e3 {[%clk 0:00:48]}  Nc6 {[%clk 0:00:58]} 28. Qa4 {[%clk 0:00:41]}  Nb8 {[%clk 0:00:55]} 29. Qc2 {[%clk 0:00:36]}  Nc6 {[%clk 0:00:54]} 30. h3 {[%clk 0:00:33]}  Nd4 {[%clk 0:00:53]} 31. exd4 {[%clk 0:00:23]}  cxd4 {[%clk 0:00:54]} 32. Qb3 {[%clk 0:00:23]}  dxc3 {[%clk 0:00:54]} 33. bxc3 {[%clk 0:00:24]}  Nd5 {[%clk 0:00:27]} 34. c4 {[%clk 0:00:22]}  Nc7 {[%clk 0:00:25]} 35. d4 {[%clk 0:00:21]}  Bf6 {[%clk 0:00:20]} 36. Bc3 {[%clk 0:00:16]}  Ne8 {[%clk 0:00:20]} 37. a4 {[%clk 0:00:16]}  Nd6 {[%clk 0:00:19]} 38. Bb4 {[%clk 0:00:16]}  Nf5 {[%clk 0:00:19]} 39. d5 {[%clk 0:00:16]}  exd5 {[%clk 0:00:19]} 40. Rxd5 {[%clk 0:00:14]}  Qxd5 {[%clk 0:00:15]} 41. Bxd5 {[%clk 0:00:11]}  Rxd5 {[%clk 0:00:15]} 42. cxd5 {[%clk 0:00:09]}  Rxc1+ {[%clk 0:00:16]} 43. Kg2 {[%clk 0:00:09]}  Rc8 {[%clk 0:00:09]} 44. d6 {[%clk 0:00:08]}  Rd8 {[%clk 0:00:09]} 45. Qd5 {[%clk 0:00:09]}  Nxd6 {[%clk 0:00:06]} 46. a5 {[%clk 0:00:05]}  Be7 {[%clk 0:00:05]} 47. a6 {[%clk 0:00:05]}  Ne8 {[%clk 0:00:04]} 48. Qe4 {[%clk 0:00:02]}  Bxb4 {[%clk 0:00:04]} 49. Qxb4 {[%clk 0:00:02]}  Nc7 {[%clk 0:00:05]} 50. Qe7 {[%clk 0:00:02]}  Rc8 {[%clk 0:00:01]} 51. Qd7 {[%clk 0:00:03]} 1-0


[Site "https://www.chess.com"]

[Event "Titled Tuesday Blitz September 27 Early 2022"]
[White "Jain, Naveen"]
[Black "Korchmar, Vasiliy"]
[WhiteFideId "5003970"]
[BlackFideId "24131750"]
[WhiteElo "2036"]
[BlackElo "2370"]
[Result "0-1"]
[Round "02"]
[TimeControl "180+1"]
[Date "2022.09.27"]
[WhiteClock "0:00:04"]
[BlackClock "0:00:08"]

1. c4 {[%clk 0:03:00]}  c6 {[%clk 0:02:56]} 2. g3 {[%clk 0:03:01]}  d5 {[%clk 0:02:55]} 3. Bg2 {[%clk 0:02:59]}  Nf6 {[%clk 0:02:55]} 4. Nf3 {[%clk 0:02:59]}  e6 {[%clk 0:02:54]} 5. O-O {[%clk 0:02:58]}  dxc4 {[%clk 0:02:53]} 6. a4 {[%clk 0:02:56]}  b5 {[%clk 0:02:42]} 7. axb5 {[%clk 0:02:51]}  cxb5 {[%clk 0:02:43]} 8. Nd4 {[%clk 0:02:51]}  Nd5 {[%clk 0:02:40]} 9. Nxb5 {[%clk 0:02:50]}  Nd7 {[%clk 0:02:37]} 10. N1c3 {[%clk 0:02:45]}  Bb7 {[%clk 0:02:36]} 11. Nxd5 {[%clk 0:02:43]}  Bxd5 {[%clk 0:02:36]} 12. Bxd5 {[%clk 0:02:43]}  exd5 {[%clk 0:02:37]} 13. b3 {[%clk 0:02:41]}  Bc5 {[%clk 0:02:28]} 14. bxc4 {[%clk 0:02:31]}  dxc4 {[%clk 0:02:29]} 15. Qc2 {[%clk 0:02:31]}  O-O {[%clk 0:02:22]} 16. Qxc4 {[%clk 0:02:31]}  Rc8 {[%clk 0:02:13]} 17. Qb3 {[%clk 0:02:23]}  Qb6 {[%clk 0:02:07]} 18. Qa4 {[%clk 0:02:18]}  Rfe8 {[%clk 0:01:45]} 19. Nc3 {[%clk 0:02:06]}  Nf6 {[%clk 0:01:20]} 20. Ba3 {[%clk 0:01:57]}  Bd4 {[%clk 0:01:01]} 21. Rab1 {[%clk 0:01:54]}  Qd8 {[%clk 0:01:02]} 22. Nb5 {[%clk 0:01:51]}  Be5 {[%clk 0:00:52]} 23. d4 {[%clk 0:01:49]}  Bb8 {[%clk 0:00:51]} 24. e3 {[%clk 0:01:47]}  Qd7 {[%clk 0:00:48]} 25. Rbc1 {[%clk 0:01:21]}  Qh3 {[%clk 0:00:43]} 26. Rxc8 {[%clk 0:01:01]}  Rxc8 {[%clk 0:00:44]} 27. Qa6 {[%clk 0:00:58]}  h5 {[%clk 0:00:33]} 28. Qb7 {[%clk 0:00:47]}  Re8 {[%clk 0:00:33]} 29. Bd6 {[%clk 0:00:37]}  Bxd6 {[%clk 0:00:27]} 30. Nxd6 {[%clk 0:00:38]}  Rf8 {[%clk 0:00:27]} 31. Ra1 {[%clk 0:00:34]}  h4 {[%clk 0:00:17]} 32. Rxa7 {[%clk 0:00:28]}  Qe6 {[%clk 0:00:17]} 33. Qe7 {[%clk 0:00:22]}  Qb3 {[%clk 0:00:13]} 34. Ra1 {[%clk 0:00:13]}  h3 {[%clk 0:00:11]} 35. Qb7 {[%clk 0:00:08]}  Qc2 {[%clk 0:00:09]} 36. Nb5 {[%clk 0:00:04]}  Qb2 {[%clk 0:00:09]} 37. Nd6 {[%clk 0:00:04]}  Qxa1+ {[%clk 0:00:08]} 0-1


[Site "https://www.chess.com"]

[Event "Titled Tuesday Blitz September 27 Early 2022"]
[White "Kevlishvili, Robby"]
[Black "Gabdrakhmanov, Azat"]
[WhiteFideId "1040634"]
[BlackFideId "34189197"]
[WhiteElo "2585"]
[BlackElo "2233"]
[Result "1-0"]
[Round "02"]
[TimeControl "180+1"]
[Date "2022.09.27"]
[WhiteClock "0:00:18"]
[BlackClock "0:00:04"]

1. e4 {[%clk 0:03:00]}  c5 {[%clk 0:03:00]} 2. Nf3 {[%clk 0:03:00]}  e6 {[%clk 0:03:00]} 3. b3 {[%clk 0:02:58]}  d6 {[%clk 0:03:00]} 4. Bb2 {[%clk 0:02:57]}  e5 {[%clk 0:03:00]} 5. c3 {[%clk 0:02:57]}  Nf6 {[%clk 0:02:58]} 6. Bd3 {[%clk 0:02:57]}  Be7 {[%clk 0:02:57]} 7. O-O {[%clk 0:02:57]}  O-O {[%clk 0:02:57]} 8. Bc2 {[%clk 0:02:57]}  Nbd7 {[%clk 0:02:52]} 9. d4 {[%clk 0:02:56]}  Re8 {[%clk 0:02:48]} 10. Nbd2 {[%clk 0:02:56]}  Qc7 {[%clk 0:02:48]} 11. Re1 {[%clk 0:02:55]}  Bf8 {[%clk 0:02:48]} 12. Nf1 {[%clk 0:02:55]}  b6 {[%clk 0:02:43]} 13. Ng3 {[%clk 0:02:54]}  Bb7 {[%clk 0:02:41]} 14. Bd3 {[%clk 0:02:45]}  g6 {[%clk 0:02:37]} 15. d5 {[%clk 0:02:44]}  a6 {[%clk 0:02:31]} 16. a4 {[%clk 0:02:43]}  Bg7 {[%clk 0:02:26]} 17. h3 {[%clk 0:02:43]}  Reb8 {[%clk 0:02:04]} 18. Nh4 {[%clk 0:02:20]}  Kh8 {[%clk 0:01:47]} 19. Bc1 {[%clk 0:02:18]}  b5 {[%clk 0:01:43]} 20. Bc2 {[%clk 0:02:02]}  c4 {[%clk 0:01:22]} 21. b4 {[%clk 0:02:02]}  a5 {[%clk 0:01:22]} 22. Be3 {[%clk 0:01:48]}  axb4 {[%clk 0:01:10]} 23. cxb4 {[%clk 0:01:48]}  bxa4 {[%clk 0:01:10]} 24. Bxa4 {[%clk 0:01:37]}  Nb6 {[%clk 0:01:09]} 25. Bc2 {[%clk 0:01:37]}  c3 {[%clk 0:01:06]} 26. Qd3 {[%clk 0:01:31]}  Nfd7 {[%clk 0:00:56]} 27. Ne2 {[%clk 0:01:26]}  Rc8 {[%clk 0:00:51]} 28. Nf3 {[%clk 0:01:23]}  Nc4 {[%clk 0:00:37]} 29. Rxa8 {[%clk 0:01:15]}  Bxa8 {[%clk 0:00:35]} 30. Ra1 {[%clk 0:01:14]}  Nxe3 {[%clk 0:00:26]} 31. Qxe3 {[%clk 0:01:14]}  Bb7 {[%clk 0:00:26]} 32. Bb3 {[%clk 0:01:02]}  Bf6 {[%clk 0:00:18]} 33. Rc1 {[%clk 0:00:58]}  Qb8 {[%clk 0:00:18]} 34. Rxc3 {[%clk 0:00:56]}  Ba6 {[%clk 0:00:18]} 35. Rxc8+ {[%clk 0:00:54]}  Qxc8 {[%clk 0:00:19]} 36. Qc3 {[%clk 0:00:50]}  Qb8 {[%clk 0:00:17]} 37. Bc4 {[%clk 0:00:42]}  Bb5 {[%clk 0:00:18]} 38. Bxb5 {[%clk 0:00:41]}  Qxb5 {[%clk 0:00:18]} 39. Nc1 {[%clk 0:00:41]}  Kg7 {[%clk 0:00:16]} 40. Nd3 {[%clk 0:00:39]}  Bd8 {[%clk 0:00:15]} 41. Nd2 {[%clk 0:00:34]}  Bb6 {[%clk 0:00:15]} 42. g3 {[%clk 0:00:27]}  Bd4 {[%clk 0:00:14]} 43. Qc4 {[%clk 0:00:27]}  Qa4 {[%clk 0:00:14]} 44. Nb3 {[%clk 0:00:25]}  Ba7 {[%clk 0:00:10]} 45. Kg2 {[%clk 0:00:24]}  Nf6 {[%clk 0:00:10]} 46. Na5 {[%clk 0:00:21]}  Qd1 {[%clk 0:00:08]} 47. Nc6 {[%clk 0:00:20]}  Bb6 {[%clk 0:00:08]} 48. Qb5 {[%clk 0:00:20]}  Bd4 {[%clk 0:00:07]} 49. Nxd4 {[%clk 0:00:20]}  exd4 {[%clk 0:00:08]} 50. Qc4 {[%clk 0:00:20]}  Qe2 {[%clk 0:00:08]} 51. Qxd4 {[%clk 0:00:20]}  h5 {[%clk 0:00:06]} 52. b5 {[%clk 0:00:19]}  Qc2 {[%clk 0:00:06]} 53. b6 {[%clk 0:00:19]}  Qb3 {[%clk 0:00:06]} 54. Nf4 {[%clk 0:00:18]}  Qb5 {[%clk 0:00:04]} 55. g4 {[%clk 0:00:17]}  hxg4 {[%clk 0:00:04]} 56. hxg4 {[%clk 0:00:18]} 1-0


[Site "https://www.chess.com"]

[Event "Titled Tuesday Blitz September 27 Early 2022"]
[White "Khamdamova, Afruza"]
[Black "Baskakov, Egor"]
[WhiteFideId "14210444"]
[BlackFideId "24197866"]
[WhiteElo "1668"]
[BlackElo "2211"]
[Result "0-1"]
[Round "02"]
[TimeControl "180+1"]
[Date "2022.09.27"]
[WhiteClock "0:00:02"]
[BlackClock "0:01:19"]

1. e4 {[%clk 0:03:00]}  c5 {[%clk 0:02:59]} 2. Nf3 {[%clk 0:02:59]}  Nf6 {[%clk 0:02:58]} 3. Nc3 {[%clk 0:02:53]}  d5 {[%clk 0:02:58]} 4. exd5 {[%clk 0:02:48]}  Nxd5 {[%clk 0:02:59]} 5. Bb5+ {[%clk 0:02:41]}  Bd7 {[%clk 0:02:58]} 6. Bxd7+ {[%clk 0:02:25]}  Qxd7 {[%clk 0:02:59]} 7. O-O {[%clk 0:02:19]}  Nc6 {[%clk 0:02:59]} 8. d4 {[%clk 0:02:07]}  cxd4 {[%clk 0:02:58]} 9. Nxd4 {[%clk 0:02:05]}  Nxc3 {[%clk 0:02:56]} 10. bxc3 {[%clk 0:02:01]}  e5 {[%clk 0:02:56]} 11. Nb5 {[%clk 0:01:58]}  a6 {[%clk 0:02:39]} 12. Qxd7+ {[%clk 0:01:52]}  Kxd7 {[%clk 0:02:40]} 13. Rd1+ {[%clk 0:01:51]}  Kc8 {[%clk 0:02:37]} 14. Nd6+ {[%clk 0:01:48]}  Bxd6 {[%clk 0:02:37]} 15. Rxd6 {[%clk 0:01:48]}  Kc7 {[%clk 0:02:37]} 16. Ba3 {[%clk 0:01:42]}  Rad8 {[%clk 0:02:36]} 17. Rad1 {[%clk 0:01:41]}  Rxd6 {[%clk 0:02:37]} 18. Bxd6+ {[%clk 0:01:32]}  Kc8 {[%clk 0:02:35]} 19. Kf1 {[%clk 0:01:24]}  Rd8 {[%clk 0:02:29]} 20. Ke2 {[%clk 0:01:15]}  f6 {[%clk 0:02:25]} 21. f4 {[%clk 0:00:57]}  exf4 {[%clk 0:02:24]} 22. Bxf4 {[%clk 0:00:55]}  Rxd1 {[%clk 0:02:25]} 23. Kxd1 {[%clk 0:00:54]}  Kd7 {[%clk 0:02:26]} 24. Kd2 {[%clk 0:00:47]}  Ke6 {[%clk 0:02:22]} 25. Kd3 {[%clk 0:00:41]}  b5 {[%clk 0:02:15]} 26. c4 {[%clk 0:00:33]}  b4 {[%clk 0:01:48]} 27. Bc7 {[%clk 0:00:23]}  f5 {[%clk 0:01:40]} 28. g3 {[%clk 0:00:18]}  g6 {[%clk 0:01:39]} 29. c3 {[%clk 0:00:15]}  Kd7 {[%clk 0:01:33]} 30. Bf4 {[%clk 0:00:12]}  Ke6 {[%clk 0:01:31]} 31. cxb4 {[%clk 0:00:11]}  Nxb4+ {[%clk 0:01:30]} 32. Kc3 {[%clk 0:00:10]}  a5 {[%clk 0:01:27]} 33. a3 {[%clk 0:00:09]}  Nc6 {[%clk 0:01:27]} 34. Kb3 {[%clk 0:00:08]}  Ne5 {[%clk 0:01:19]} 35. Bxe5 {[%clk 0:00:05]}  Kxe5 {[%clk 0:01:20]} 36. Ka4 {[%clk 0:00:02]}  g5 {[%clk 0:01:19]} 0-1


[Site "https://www.chess.com"]